fUST/lending_fUST_20250722
["ID","MTS","AMOUNT","RATE_DAILY","PERIOD"]
[373910605,1753150233030,-460.0,0.00017369,2]
[373910606,1753150233039,-460.0,0.00017369,2]
[373910607,1753150233050,-460.0,0.00017369,2]
[373910608,1753150233061,-500.0,0.00017369,2]
[373910609,1753150233074,-500.0,0.00017369,2]
[373910610,1753150233084,-500.0,0.00017369,2]
[373910611,1753150233094,-500.0,0.00017369,2]
[373910612,1753150233104,-500.0,0.00017369,2]
[373910613,1753150233115,-368.64074726,0.00017369,2]
[373910614,1753150233125,-500.0,0.00017369,2]
[373910616,1753150233135,-500.0,0.00017369,2]
[373910618,1753150233146,-500.0,0.00017369,2]
[373910620,1753150233155,-217.66926743,0.00017369,2]
[373910622,1753150233165,-500.0,0.00017369,2]
[373910623,1753150233174,-511.68377879,0.00017369,2]
[373910625,1753150233184,-500.32679306,0.00017369,2]
[373910627,1753150233194,-500.0,0.00017369,2]
[373910629,1753150233203,-500.0,0.00017369,2]
[373910630,1753150233212,-500.0,0.00017369,2]
[373910632,1753150233223,-500.0,0.00017369,2]
[373910635,1753150233233,-500.0,0.00017369,2]
[373910637,1753150233243,-500.0,0.00017369,2]
[373910639,1753150233252,-413.59009335,0.00017369,2]
[373910641,1753150233262,-500.0,0.00017369,2]
[373910643,1753150233272,-500.0,0.00017369,2]
[373910645,1753150233281,-500.0,0.00017369,2]
[373910647,1753150233291,-500.0,0.00017369,2]
[373910649,1753150233302,-502.9697911,0.00017369,2]
[373910651,1753150233313,-500.0,0.00017369,2]
[373910653,1753150233322,-500.0,0.00017369,2]
[373910655,1753150233332,-500.0,0.00017369,2]
[373910657,1753150233343,-500.0,0.00017369,2]
[373910659,1753150233352,-267.94489379,0.00017369,2]
[373910661,1753150233361,-500.0,0.00017369,2]
[373910663,1753150233371,-500.0,0.00017369,2]
[373910665,1753150233381,-500.0,0.00017369,2]
[373910667,1753150233391,-500.0,0.00017369,2]
[373910669,1753150233399,-500.0,0.00017369,2]
[373910671,1753150233409,-500.0,0.00017369,2]
[373910673,1753150233419,-500.0,0.00017369,2]
[373910675,1753150233428,-500.0,0.00017369,2]
[373910677,1753150233438,-500.0,0.00017369,2]
[373910679,1753150233447,-500.0,0.00017369,2]
[373910681,1753150233456,-500.0,0.00017369,2]
[373910683,1753150233465,-500.0,0.00017369,2]
[373910685,1753150233475,-449.00527921,0.00017369,2]
[373910687,1753150233485,-500.0,0.00017369,2]
[373910689,1753150233495,-171.03643927,0.00017369,2]
[373910691,1753150233504,-460.0,0.00017369,2]
[373910693,1753150233513,-500.0,0.00017369,2]
[373910695,1753150233523,-500.0,0.00017369,2]
[373910697,1753150233532,-605.44503103,0.00017369,2]
[373910699,1753150233541,-797.37,0.00017369,2]
[373910701,1753150233551,-460.0,0.00017369,2]
[373910703,1753150233561,-178.38278122,0.00017369,2]
[373910705,1753150233570,-220.94679304,0.00017369,2]
[373910707,1753150233580,-1914.14,0.00017369,2]
[373910709,1753150233589,-1004.43,0.00017369,2]
[373910711,1753150233598,-460.0,0.00017369,2]
[373910713,1753150233608,-460.0,0.00017369,2]
[373910715,1753150233617,-944.59,0.00017369,2]
[373910717,1753150233627,-206.4509878,0.0001737,2]
[373910719,1753150233636,-460.0,0.0001737,2]
[373910720,1753150233645,-461.03525756,0.0001737,2]
[373910722,1753150233655,-460.0,0.0001737,2]
[373910724,1753150233665,-460.0,0.0001737,2]
[373910726,1753150233674,-460.71765756,0.0001737,2]
[373910728,1753150233685,-500.0,0.0001737,2]
[373910730,1753150233695,-509.02866643,0.0001737,2]
[373910732,1753150233706,-461.11153821,0.0001737,2]
[373910734,1753150233715,-460.0,0.0001737,2]
[373910737,1753150233726,-460.0,0.0001737,2]
[373910739,1753150233736,-460.0,0.0001737,2]
[373910741,1753150233746,-502.07880512,0.0001737,2]
[373910743,1753150233755,-461.97766655,0.0001737,2]
[373910745,1753150233764,-460.0,0.0001737,2]
[373910747,1753150233774,-460.0,0.0001737,2]
[373910749,1753150233784,-460.0,0.0001737,2]
[373910751,1753150233794,-460.0,0.0001737,2]
[373910753,1753150233804,-461.73963849,0.0001737,2]
[373910755,1753150233815,-209.26569323,0.0001737,2]
[373910757,1753150233824,-461.25584666,0.0001737,2]
[373910759,1753150233834,-521.501464,0.0001737,2]
[373910761,1753150233844,-460.0,0.0001737,2]
[373910762,1753150233864,-463.4657934,0.0001737,2]
[373910765,1753150233884,-460.0,0.0001737,2]
[373910767,1753150233893,-460.0,0.0001737,2]
[373910769,1753150233902,-460.0,0.0001737,2]
[373910770,1753150233912,-384.82172368,0.0001737,2]
[373910772,1753150233925,-460.0,0.0001737,2]
[373910774,1753150233935,-460.0,0.0001737,2]
[373910776,1753150233944,-460.0,0.0001737,2]
[373910778,1753150233954,-460.96692359,0.0001737,2]
[373910780,1753150233964,-461.67511555,0.0001737,2]
[373910783,1753150233974,-465.12608929,0.0001737,2]
[373910784,1753150233984,-460.0,0.0001737,2]
[373910786,1753150233993,-460.0,0.0001737,2]
[373910788,1753150234003,-460.0,0.0001737,2]
[373910790,1753150234014,-460.0,0.0001737,2]
[373910792,1753150234024,-460.0,0.0001737,2]
[373910794,1753150234034,-460.0,0.0001737,2]
[373910797,1753150234047,-460.0,0.0001737,2]
[373910799,1753150234059,-460.0,0.0001737,2]
[373910801,1753150234074,-460.0,0.0001737,2]
[373910803,1753150234085,-460.724251,0.0001737,2]
[373910804,1753150234096,-460.0,0.0001737,2]
[373910806,1753150234107,-460.0,0.0001737,2]
[373910808,1753150234118,-464.2091238,0.0001737,2]
[373910810,1753150234128,-462.05102593,0.0001737,2]
[373910812,1753150234140,-460.85224964,0.0001737,2]
[373910814,1753150234153,-461.80218566,0.0001737,2]
[373910816,1753150234167,-460.0,0.0001737,2]
[373910818,1753150234178,-460.0,0.0001737,2]
[373910820,1753150234189,-460.0,0.0001737,2]
[373910823,1753150234202,-460.0,0.0001737,2]
[373910825,1753150234214,-460.0,0.0001737,2]
[373910826,1753150234226,-460.0,0.0001737,2]
[373910828,1753150234237,-460.0,0.0001737,2]
[373910830,1753150234248,-460.0,0.0001737,2]
[373910832,1753150234259,-460.0,0.0001737,2]
[373910835,1753150234270,-461.12305683,0.0001737,2]
[373910837,1753150234281,-575.97,0.0001737,2]
[373910838,1753150234291,-460.0,0.0001737,2]
[373910840,1753150234302,-460.0,0.0001737,2]
[373910842,1753150234312,-497.63742703,0.0001737,2]
[373910845,1753150234323,-463.23347265,0.0001737,2]
[373910847,1753150234333,-460.0,0.0001737,2]
[373910848,1753150234343,-460.0,0.0001737,2]
[373910849,1753150234353,-460.0,0.0001737,2]
[373910850,1753150234363,-462.6115793,0.0001737,2]
[373910851,1753150234373,-460.0,0.0001737,2]
[373910852,1753150234383,-463.03592007,0.0001737,2]
[373910853,1753150234392,-460.0,0.0001737,2]
[373910854,1753150234402,-460.0,0.0001737,2]
[373910855,1753150234411,-460.0,0.0001737,2]
[373910856,1753150234421,-460.0,0.0001737,2]
[373910857,1753150234430,-460.0,0.0001737,2]
[373910858,1753150234440,-460.0,0.0001737,2]
[373910859,1753150234449,-462.192985,0.0001737,2]
[373910860,1753150234459,-461.06085291,0.0001737,2]
[373910861,1753150234469,-460.0,0.0001737,2]
[373910862,1753150234481,-460.0,0.0001737,2]
[373910863,1753150234491,-460.0,0.0001737,2]
[373910864,1753150234500,-460.93950526,0.0001737,2]
[373910865,1753150234509,-460.78171649,0.0001737,2]
[373910866,1753150234519,-461.62004528,0.0001737,2]
[373910867,1753150234529,-461.43921183,0.0001737,2]
[373910868,1753150234539,-460.0,0.0001737,2]
[373910869,1753150234548,-460.0,0.0001737,2]
[373910870,1753150234559,-461.54332183,0.0001737,2]
[373910871,1753150234570,-460.75249739,0.0001737,2]
[373910872,1753150234580,-460.0,0.0001737,2]
[373910873,1753150234590,-464.41241339,0.0001737,2]
[373910874,1753150234600,-461.03941453,0.0001737,2]
[373910875,1753150234611,-460.0,0.0001737,2]
[373910876,1753150234621,-460.0,0.0001737,2]
[373910877,1753150234631,-461.29663278,0.0001737,2]
[373910878,1753150234641,-460.0,0.0001737,2]
[373910879,1753150234652,-540.64627598,0.0001737,2]
[373910881,1753150234662,-460.0,0.0001737,2]
[373910883,1753150234672,-460.95551978,0.0001737,2]
[373910885,1753150234682,-462.62663631,0.0001737,2]
[373910887,1753150234692,-500.0,0.0001737,2]
[373910889,1753150234703,-460.9164131,0.0001737,2]
[373910891,1753150234713,-500.0,0.0001737,2]
[373910893,1753150234723,-439.72665304,0.0001737,2]
[373910895,1753150234733,-460.0,0.0001737,2]
[373910897,1753150234743,-460.0,0.0001737,2]
[373910899,1753150234753,-460.0,0.0001737,2]
[373910901,1753150234762,-460.0,0.0001737,2]
[373910903,1753150234772,-461.66405484,0.0001737,2]
[373910905,1753150234781,-462.41887776,0.0001737,2]
[373910907,1753150234791,-460.0,0.0001737,2]
[373910909,1753150234800,-460.86977997,0.0001737,2]
[373910911,1753150234810,-460.0,0.0001737,2]
[373910913,1753150234820,-460.0,0.0001737,2]
[373910915,1753150234830,-455.95803494,0.0001737,2]
[373910917,1753150234839,-460.0,0.0001737,2]
[373910919,1753150234849,-500.0,0.0001737,2]
[373910921,1753150234858,-500.0,0.0001737,2]
[373910923,1753150234868,-500.0,0.0001737,2]
[373910925,1753150234877,-500.0,0.0001737,2]
[373910927,1753150234888,-500.0,0.0001737,2]
[373910929,1753150234898,-500.0,0.0001737,2]
[373910931,1753150234908,-500.0,0.0001737,2]
[373910933,1753150234917,-460.0,0.0001737,2]
[373910935,1753150234926,-462.37519023,0.0001737,2]
[373910937,1753150234936,-461.00621551,0.0001737,2]
[373910939,1753150234946,-460.0,0.0001737,2]
[373910941,1753150234955,-460.0,0.0001737,2]
[373910942,1753150234965,-461.25499837,0.0001737,2]
[373910944,1753150234974,-460.71515886,0.0001737,2]
[373910946,1753150234984,-461.67129545,0.0001737,2]
[373910948,1753150234993,-460.0,0.0001737,2]
[373910950,1753150235003,-460.0,0.0001737,2]
[373910952,1753150235012,-460.0,0.0001737,2]
[373910954,1753150235021,-460.0,0.0001737,2]
[373910956,1753150235030,-460.0,0.0001737,2]
[373910958,1753150235040,-456.62111908,0.0001737,2]
[373910960,1753150235049,-462.36550959,0.0001737,2]
[373910962,1753150235059,-460.0,0.0001737,2]
[373910964,1753150235071,-451.82157712,0.0001737,2]
[373910966,1753150235081,-462.01363728,0.0001737,2]
[373910967,1753150235090,-461.48325937,0.0001737,2]
[373910970,1753150235100,-460.98492194,0.0001737,2]
[373910971,1753150235110,-460.0,0.0001737,2]
[373910973,1753150235119,-460.0,0.0001737,2]
[373910975,1753150235130,-460.0,0.0001737,2]
[373910978,1753150235139,-460.0,0.0001737,2]
[373910980,1753150235152,-460.0,0.0001737,2]
[373910982,1753150235162,-460.0,0.0001737,2]
[373910996,1753150235294,-460.0,0.0001737,2]
[373910998,1753150235304,-460.0,0.0001737,2]
[373911000,1753150235315,-460.0,0.0001737,2]
[373911002,1753150235325,-460.0,0.0001737,2]
[373911003,1753150235335,-460.0,0.0001737,2]
[373911004,1753150235344,-461.43979808,0.0001737,2]
[373911005,1753150235354,-460.0,0.0001737,2]
[373911006,1753150235364,-460.0,0.0001737,2]
[373911007,1753150235374,-460.0,0.0001737,2]
[373911008,1753150235383,-460.0,0.0001737,2]
[373911009,1753150235393,-460.0,0.0001737,2]
[373911010,1753150235402,-460.0,0.0001737,2]
[373911011,1753150235412,-460.0,0.0001737,2]
[373911012,1753150235422,-460.0,0.0001737,2]
[373911013,1753150235431,-460.0,0.0001737,2]
[373911014,1753150235442,-588.3,0.0001737,2]
[373911015,1753150235451,-460.0,0.0001737,2]
[373911016,1753150235461,-460.0,0.0001737,2]
[373911017,1753150235470,-453.73691368,0.0001737,2]
[373911018,1753150235480,-289.04189171,0.0001737,2]
[373911019,1753150235489,-460.0,0.0001737,2]
[373911020,1753150235500,-460.0,0.0001737,2]
[373911021,1753150235509,-460.0,0.0001737,2]
[373911022,1753150235519,-460.0,0.0001737,2]
[373911023,1753150235529,-460.50505922,0.0001737,2]
[373911024,1753150235540,-460.0,0.0001737,2]
[373911025,1753150235550,-460.7087734,0.0001737,2]
[373911026,1753150235559,-344.84473544,0.0001737,2]
[373911027,1753150235570,-460.0,0.0001737,2]
[373911028,1753150235579,-460.0,0.0001737,2]
[373911029,1753150235589,-460.0,0.0001737,2]
[373911030,1753150235598,-460.80735213,0.0001737,2]
[373911031,1753150235608,-460.0,0.0001737,2]
[373911032,1753150235617,-460.0,0.0001737,2]
[373911033,1753150235626,-460.0,0.0001737,2]
[373911034,1753150235635,-460.0,0.0001737,2]
[373911035,1753150235645,-460.0,0.0001737,2]
[373911036,1753150235654,-460.0,0.0001737,2]
[373911037,1753150235664,-460.0,0.0001737,2]
[373911038,1753150235673,-460.0,0.0001737,2]
[373911039,1753150235682,-460.0,0.0001737,2]
[373911040,1753150235692,-460.0,0.0001737,2]
[373911041,1753150235701,-460.0,0.0001737,2]
[373911042,1753150235711,-1267.5,0.0001737,2]
[373911043,1753150235721,-460.0,0.0001737,2]
[373911044,1753150235731,-460.0,0.0001737,2]
[373911045,1753150235740,-460.0,0.0001737,2]
[373911046,1753150235750,-460.0,0.0001737,2]
[373911047,1753150235760,-460.0,0.0001737,2]
[373911048,1753150235770,-504.25856855,0.0001737,2]
[373911049,1753150235779,-460.0,0.0001737,2]
[373911050,1753150235788,-460.0,0.0001737,2]
[373911051,1753150235798,-460.0,0.0001737,2]
[373911052,1753150235808,-462.33930787,0.0001737,2]
[373911053,1753150235821,-460.0,0.0001737,2]
[373911054,1753150235831,-460.0,0.0001737,2]
[373911055,1753150235840,-460.0,0.0001737,2]
[373911056,1753150235849,-460.0,0.0001737,2]
[373911057,1753150235859,-269.85022401,0.0001737,2]
[373911058,1753150235868,-460.0,0.0001737,2]
[373911059,1753150235878,-1122.18,0.0001737,2]
[373911060,1753150235888,-460.7933602,0.0001737,2]
[373911061,1753150235897,-460.0,0.0001737,2]
[373911062,1753150235906,-670.11,0.0001737,2]
[373911063,1753150235915,-460.0,0.0001737,2]
[373911064,1753150235925,-460.0,0.0001737,2]
[373911065,1753150235934,-460.0,0.0001737,2]
[373911066,1753150235944,-460.0,0.0001737,2]
[373911067,1753150235953,-460.0,0.0001737,2]
[373911068,1753150235963,-460.855011,0.0001737,2]
[373911069,1753150235972,-460.0,0.0001737,2]
[373911070,1753150235982,-460.0,0.0001737,2]
[373911071,1753150235991,-851.4,0.0001737,2]
[373911072,1753150236001,-460.0,0.0001737,2]
[373911073,1753150236011,-460.0,0.0001737,2]
[373911074,1753150236021,-460.0,0.0001737,2]
[373911075,1753150236030,-572.14906612,0.0001737,2]
[373911076,1753150236040,-460.0,0.0001737,2]
[373911077,1753150236049,-460.0,0.0001737,2]
[373911078,1753150236059,-1222.16,0.0001737,2]
[373911079,1753150236070,-460.72466294,0.0001737,2]
[373911080,1753150236082,-460.0,0.0001737,2]
[373911081,1753150236092,-460.0,0.0001737,2]
[373911082,1753150236102,-460.0,0.0001737,2]
[373911083,1753150236112,-461.01187929,0.0001737,2]
[373911084,1753150236123,-460.0,0.0001737,2]
[373911085,1753150236133,-460.86319,0.0001737,2]
[373911086,1753150236142,-454.69675311,0.0001737,2]
[373911087,1753150236151,-460.51659652,0.0001737,2]
[373911088,1753150236161,-1058.25,0.0001737,2]
[373911089,1753150236170,-460.0,0.0001737,2]
[373911090,1753150236180,-460.0,0.0001737,2]
[373911091,1753150236190,-460.0,0.0001737,2]
[373911092,1753150236200,-1806.21,0.0001737,2]
[373911093,1753150236210,-627.95,0.0001737,2]
[373911094,1753150236219,-460.0,0.0001737,2]
[373911095,1753150236229,-460.0,0.0001737,2]
[373911096,1753150236238,-460.0,0.0001737,2]
[373911097,1753150236248,-460.0,0.0001737,2]
[373911098,1753150236258,-461.62442736,0.0001737,2]
[373911099,1753150236268,-460.0,0.0001737,2]
[373911100,1753150236278,-461.92509039,0.0001737,2]
[373911101,1753150236288,-460.0,0.0001737,2]
[373911102,1753150236298,-460.52686519,0.0001737,2]
[373911103,1753150236307,-460.0,0.0001737,2]
[373911104,1753150236319,-252.16780009,0.0001737,2]
[373911105,1753150236330,-460.0,0.0001737,2]
[373911106,1753150236340,-540.0,0.0001737,2]
[373911107,1753150236349,-460.0,0.0001737,2]
[373911108,1753150236359,-460.0,0.0001737,2]
[373911109,1753150236368,-460.0,0.0001737,2]
[373911110,1753150236378,-462.2299416,0.0001737,2]
[373911111,1753150236387,-460.0,0.0001737,2]
[373911112,1753150236396,-460.0,0.0001737,2]
[373911113,1753150236406,-460.0,0.0001737,2]
[373911114,1753150236415,-461.17617279,0.0001737,2]
[373911115,1753150236424,-460.0,0.0001737,2]
[373911116,1753150236434,-460.0,0.0001737,2]
[373911117,1753150236443,-458.5192034,0.0001737,2]
[373911118,1753150236453,-460.0,0.0001737,2]
[373911119,1753150236462,-460.0,0.0001737,2]
[373911120,1753150236472,-460.0,0.0001737,2]
[373911121,1753150236482,-1090.61,0.0001737,2]
[373911122,1753150236492,-460.0,0.0001737,2]
[373911123,1753150236501,-460.0,0.0001737,2]
[373911124,1753150236510,-517.0,0.0001737,2]
[373911125,1753150236524,-460.0,0.0001737,2]
[373911126,1753150236542,-460.0,0.0001737,2]
[373911127,1753150236552,-460.0,0.0001737,2]
[373911128,1753150236563,-460.0,0.0001737,2]
[373911129,1753150236573,-466.12638168,0.0001737,2]
[373911130,1753150236582,-461.1238697,0.0001737,2]
[373911131,1753150236592,-460.0,0.0001737,2]
[373911132,1753150236602,-460.93969887,0.0001737,2]
[373911133,1753150236612,-460.0,0.0001737,2]
[373911134,1753150236622,-460.0,0.0001737,2]
[373911135,1753150236631,-502.1326095,0.0001737,2]
[373911136,1753150236641,-462.73715295,0.0001737,2]
[373911137,1753150236651,-460.0,0.0001737,2]
[373911138,1753150236660,-460.0,0.0001737,2]
[373911139,1753150236669,-592.39878277,0.0001737,2]
[373911140,1753150236680,-420.01884217,0.0001737,2]
[373911141,1753150236689,-460.0,0.0001737,2]
[373911142,1753150236699,-460.0,0.0001737,2]
[373911143,1753150236709,-460.0,0.0001737,2]
[373911144,1753150236719,-460.0,0.0001737,2]
[373911145,1753150236728,-460.0,0.0001737,2]
[373911146,1753150236737,-460.0,0.0001737,2]
[373911147,1753150236747,-520.16943935,0.0001737,2]
[373911148,1753150236756,-507.21914454,0.0001737,2]
[373911149,1753150236765,-460.47335228,0.0001737,2]
[373911150,1753150236775,-933.11,0.0001737,2]
[373911151,1753150236784,-500.0,0.0001737,2]
[373911152,1753150236793,-13134.12717264,0.00017371,2]
[373911210,1753150238459,-387.68655292,0.00017367,2]
[373911218,1753150238563,-78.57051745,0.00017367,2]
[373911220,1753150238573,-461.29315979,0.0001737,2]
[373911222,1753150238582,-460.0,0.0001737,2]
[373911225,1753150238601,-254.91137514,0.00017371,2]
[373911227,1753150238615,-1038.4071728,0.00017371,2]
[373911230,1753150238627,-2214.5971396,0.00017371,2]
[373911251,1753150238816,-857.80998,0.00017371,2]
[373911266,1753150238945,-317.84,0.00017371,2]
[373911268,1753150238956,-1614.42972313,0.00017371,2]
[373911270,1753150238968,-1721.5052032,0.00017371,2]
[373911412,1753150240322,-122350.95420859,0.00017371,2]
[373911414,1753150240332,-500.0,0.00017467,2]
[373911416,1753150240341,-274.02189128,0.00017468,2]
[373911418,1753150240351,-460.0,0.00017468,2]
[373911420,1753150240360,-460.0,0.00017468,2]
[373911423,1753150240371,-460.0,0.00017468,2]
[373911425,1753150240385,-460.0,0.00017468,2]
[373911427,1753150240395,-460.0,0.00017468,2]
[373911429,1753150240405,-1002.82237932,0.00017468,2]
[373911431,1753150240414,-460.35428393,0.00017468,2]
[373911433,1753150240423,-460.0,0.00017468,2]
[373911435,1753150240433,-248.96851732,0.00017468,2]
[373911437,1753150240443,-460.0,0.00017468,2]
[373911439,1753150240453,-585.68750164,0.00017468,2]
[373911441,1753150240463,-460.86785702,0.00017468,2]
[373911443,1753150240472,-461.40322601,0.00017468,2]
[373911445,1753150240482,-831.0,0.00017468,2]
[373911447,1753150240492,-151.93190959,0.00017468,2]
[373911449,1753150240502,-201.60099627,0.00017468,2]
[373911451,1753150240512,-151.0,0.00017468,2]
[373911453,1753150240522,-500.0,0.00017468,2]
[373911456,1753150240531,-500.0,0.00017468,2]
[373911458,1753150240541,-500.0,0.00017468,2]
[373911460,1753150240551,-460.0,0.00017469,2]
[373911462,1753150240561,-460.0,0.00017469,2]
[373911464,1753150240571,-460.0,0.00017469,2]
[373911466,1753150240581,-461.42795852,0.00017469,2]
[373911468,1753150240591,-462.97319532,0.00017469,2]
[373911470,1753150240601,-460.0,0.00017469,2]
[373911472,1753150240610,-460.0,0.00017469,2]
[373911474,1753150240620,-500.0,0.00017469,2]
[373911476,1753150240634,-500.0,0.00017469,2]
[373911478,1753150240644,-1057.16,0.00017469,2]
[373911480,1753150240654,-988.45,0.00017469,2]
[373911482,1753150240664,-460.0,0.00017469,2]
[373911484,1753150240674,-460.0,0.00017469,2]
[373911487,1753150240684,-465.20427475,0.00017469,2]
[373911489,1753150240693,-863.72,0.00017469,2]
[373911491,1753150240703,-709.06,0.00017469,2]
[373911493,1753150240712,-1050.25,0.00017469,2]
[373911495,1753150240722,-1009.62,0.00017469,2]
[373911497,1753150240731,-652.66,0.00017469,2]
[373911499,1753150240742,-436.1817012,0.00017469,2]
[373911501,1753150240751,-463.4151537,0.0001747,2]
[373911503,1753150240763,-460.0,0.0001747,2]
[373911505,1753150240772,-460.0,0.0001747,2]
[373911507,1753150240782,-460.0,0.0001747,2]
[373911509,1753150240791,-461.47427707,0.0001747,2]
[373911511,1753150240801,-460.95270677,0.0001747,2]
[373911513,1753150240811,-460.0,0.0001747,2]
[373911515,1753150240821,-460.0,0.0001747,2]
[373911517,1753150240831,-461.11731508,0.0001747,2]
[373911519,1753150240840,-460.0,0.0001747,2]
[373911521,1753150240849,-500.0,0.0001747,2]
[373911523,1753150240859,-372.69813279,0.0001747,2]
[373911525,1753150240869,-460.0,0.0001747,2]
[373911527,1753150240879,-460.0,0.0001747,2]
[373911529,1753150240889,-1136.58,0.0001747,2]
[373911531,1753150240900,-312.02226483,0.0001747,2]
[373911534,1753150240913,-500.0,0.0001747,2]
[373911536,1753150240922,-500.0,0.0001747,2]
[373911538,1753150240932,-2270.12,0.0001747,2]
[373911540,1753150240941,-500.0,0.0001747,2]
[373911542,1753150240951,-500.0,0.0001747,2]
[373911544,1753150240960,-1205.52,0.0001747,2]
[373911546,1753150240969,-461.61217851,0.0001747,2]
[373911548,1753150240979,-460.0,0.0001747,2]
[373911550,1753150240988,-460.0,0.00017471,2]
[373911552,1753150240998,-460.0,0.00017471,2]
[373911554,1753150241007,-462.57493785,0.00017471,2]
[373911556,1753150241017,-565.89945521,0.00017471,2]
[373911558,1753150241029,-565.89945521,0.00017471,2]
[373911560,1753150241039,-460.0,0.00017471,2]
[373911562,1753150241049,-460.0,0.00017471,2]
[373911564,1753150241059,-460.0,0.00017471,2]
[373911566,1753150241070,-530.18207316,0.00017471,2]
[373911568,1753150241082,-462.1401687,0.00017471,2]
[373911571,1753150241094,-460.0,0.00017471,2]
[373911573,1753150241105,-460.0,0.00017471,2]
[373911575,1753150241115,-460.0,0.00017471,2]
[373911577,1753150241124,-460.0,0.00017471,2]
[373911579,1753150241134,-460.0,0.00017471,2]
[373911581,1753150241143,-511.0559239,0.00017471,2]
[373911583,1753150241154,-8195.68,0.00017471,2]
[373911584,1753150241163,-460.0,0.00017471,2]
[373911587,1753150241173,-460.0,0.00017471,2]
[373911589,1753150241183,-464.9395928,0.00017471,2]
[373911591,1753150241192,-460.0,0.00017471,2]
[373911593,1753150241202,-460.0,0.00017471,2]
[373911595,1753150241211,-169.32318871,0.00017471,2]
[373911597,1753150241221,-460.0,0.00017471,2]
[373911599,1753150241230,-460.0,0.00017471,2]
[373911601,1753150241239,-460.0,0.00017471,2]
[373911603,1753150241249,-460.0,0.00017471,2]
[373911605,1753150241258,-460.6598464,0.00017471,2]
[373911607,1753150241267,-709.0,0.00017471,2]
[373911609,1753150241277,-460.0,0.00017471,2]
[373911611,1753150241286,-1140.9,0.00017471,2]
[373911613,1753150241296,-980.39,0.00017471,2]
[373911615,1753150241305,-460.0,0.00017471,2]
[373911617,1753150241315,-461.82040879,0.00017471,2]
[373911619,1753150241326,-553.95,0.00017471,2]
[373911621,1753150241335,-4057.99,0.00017471,2]
[373911623,1753150241345,-460.0,0.00017471,2]
[373911625,1753150241355,-460.04491976,0.00017471,2]
[373911627,1753150241364,-470.43062227,0.00017471,2]
[373911629,1753150241374,-464.63249188,0.00017471,2]
[373911631,1753150241383,-460.0,0.00017471,2]
[373911633,1753150241392,-460.0,0.00017471,2]
[373911635,1753150241401,-460.0,0.00017471,2]
[373911637,1753150241410,-1161.59,0.00017471,2]
[373911639,1753150241420,-460.0,0.00017471,2]
[373911641,1753150241430,-460.0,0.00017471,2]
[373911643,1753150241439,-460.0,0.00017471,2]
[373911645,1753150241449,-460.0,0.00017471,2]
[373911647,1753150241459,-460.0,0.00017471,2]
[373911649,1753150241468,-460.0,0.00017471,2]
[373911651,1753150241478,-614.7,0.00017471,2]
[373911653,1753150241487,-460.0,0.00017471,2]
[373911655,1753150241497,-460.0,0.00017471,2]
[373911657,1753150241506,-460.0,0.00017471,2]
[373911659,1753150241515,-500.0,0.00017471,2]
[373911662,1753150241525,-500.0,0.00017471,2]
[373911664,1753150241534,-500.0,0.00017471,2]